bitfinex/quotes_BTCUSD_20251015
["timestamp","ask_amount","ask_price","bid_price","bid_amount"]
[1760514852063,0.17735213,112770.0,112760.0,0.17950034]
[1760514852268,0.20401557,112780.0,112770.0,0.17735213]
[1760514852467,5.02184257,112780.0,112770.0,0.17735213]
[1760514853036,0.17735213,112770.0,112760.0,0.17950034]
[1760514854207,0.17735213,112770.0,112760.0,0.17750034]
[1760514855153,0.17735213,112770.0,112760.0,0.17850034]
[1760514855381,0.17735213,112770.0,112760.0,0.17950034]
[1760514857551,4.817827,112770.0,112760.0,0.17950034]
[1760514860986,0.17734223,112780.0,112770.0,0.17733951]
[1760514860987,4.817827,112780.0,112770.0,0.17733951]
[1760514862166,4.99514771,112790.0,112780.0,0.1773364]
[1760514862604,4.817827,112790.0,112780.0,0.1773364]
[1760514863011,4.99514768,112790.0,112780.0,0.1773364]
[1760514866606,4.99517913,112770.0,112760.0,0.00013248]
[1760514867841,4.99517913,112770.0,112760.0,0.00113248]
[1760514868042,4.99517913,112770.0,112760.0,0.00213248]
[1760514868635,4.99517913,112770.0,112760.0,0.17950034]
[1760514870910,4.817827,112770.0,112760.0,0.17950034]
[1760514877706,4.587819,112770.0,112760.0,0.17950034]
[1760514877933,4.587819,112780.0,112770.0,0.17735213]
[1760514887152,4.76513968,112790.0,112780.0,0.1773364]
[1760514888879,4.587819,112790.0,112780.0,0.1773364]
[1760514889110,4.76513968,112790.0,112780.0,0.1773364]
[1760514889536,4.587819,112790.0,112780.0,0.1773364]
[1760514890623,4.540824,112790.0,112780.0,0.1773364]
[1760514890870,4.71814468,112790.0,112780.0,0.1773364]
[1760514891816,4.540824,112790.0,112780.0,0.1773364]
[1760514892224,4.71814468,112790.0,112780.0,0.1773364]
[1760514893076,4.540824,112790.0,112780.0,0.1773364]
[1760514894843,4.71814468,112790.0,112780.0,0.1773364]
[1760514898166,4.540824,112790.0,112780.0,0.1773364]
[1760514898377,4.71814468,112790.0,112780.0,0.1773364]
[1760514900730,4.71814468,112790.0,112770.0,0.17735213]
[1760514900948,4.540824,112780.0,112770.0,0.17735213]
[1760514914313,0.04115839,112800.0,112790.0,0.17732068]
[1760514914520,0.02554395,112800.0,112790.0,0.17732068]
[1760514914737,0.00057476,112800.0,112790.0,0.17732068]
[1760514915966,0.00057476,112800.0,112790.0,0.17832068]
[1760514917389,0.00057476,112800.0,112790.0,0.17932068]
[1760514918042,0.00048669,112800.0,112790.0,0.17932068]
[1760514920410,4.71861565,112800.0,112790.0,0.002]
[1760514921554,4.74528865,112800.0,112790.0,0.001]
[1760514922016,4.540824,112790.0,112780.0,0.17733555]
[1760514923281,4.540824,112790.0,112780.0,0.17833555]
[1760514923902,4.540824,112790.0,112780.0,0.17933555]
[1760514926201,4.540824,112800.0,112790.0,0.17732068]
[1760514929671,0.21260228,112810.0,112800.0,0.17730496]
[1760514930081,0.21260228,112810.0,112790.0,0.17732068]
[1760514930295,0.21317697,112810.0,112790.0,0.17732068]
[1760514930946,0.17730496,112800.0,112790.0,0.17732068]
[1760514931157,0.17730496,112800.0,112780.0,0.18620237]
[1760514931366,0.17730496,112800.0,112790.0,0.17732068]
[1760514939514,5.21812896,112800.0,112780.0,0.1773364]
[1760514939752,4.540824,112790.0,112780.0,0.1773364]
[1760514941391,4.540824,112790.0,112780.0,0.1783364]
[1760514942791,4.540824,112790.0,112780.0,0.1793364]
[1760514948824,4.540824,112800.0,112790.0,0.17732068]
[1760514950839,0.21317741,112810.0,112800.0,0.17730496]
[1760514951845,0.0358845,112810.0,112800.0,0.17730496]
[1760514952044,0.00057469,112810.0,112800.0,0.17730496]
[1760514953177,0.17786393,112810.0,112800.0,0.17730496]
[1760514954140,0.21340419,112810.0,112800.0,0.17730496]
[1760514954749,0.03611495,112810.0,112800.0,0.17730496]
[1760514956344,0.21340419,112810.0,112800.0,0.17730496]
[1760514956551,0.03611495,112810.0,112800.0,0.17730496]
[1760514959069,0.21340419,112810.0,112800.0,0.17730496]
[1760514960811,0.03611495,112810.0,112800.0,0.17730496]
[1760514961012,0.21340419,112810.0,112800.0,0.17730496]
[1760514966314,0.03611495,112810.0,112800.0,0.17730496]
[1760514968950,0.00057469,112810.0,112800.0,0.17730496]
[1760514974667,0.17730496,112800.0,112790.0,0.17732068]
[1760514975200,0.17786393,112810.0,112790.0,0.17732068]
[1760514975382,0.17730496,112800.0,112790.0,0.17732068]
[1760514975782,0.17786393,112810.0,112790.0,0.17732068]
[1760514976232,0.17786393,112810.0,112790.0,0.17832068]
[1760514976618,0.17786393,112810.0,112790.0,0.17932068]
[1760514976961,0.17786393,112810.0,112790.0,0.17832068]
[1760514977767,0.17786393,112810.0,112800.0,0.19503545]
[1760514977911,0.17786393,112810.0,112800.0,0.17730496]
[1760514981291,0.17728924,112810.0,112800.0,0.17730496]
[1760514985513,0.17732068,112790.0,112770.0,0.02666904]
[1760514985718,0.17735467,112770.0,112750.0,0.32018121]
[1760514985918,0.17735467,112770.0,112750.0,0.25251646]
[1760514986117,0.17736786,112760.0,112750.0,0.18076436]
[1760514986683,0.17735467,112770.0,112750.0,0.18076436]
[1760514987372,0.17735467,112770.0,112760.0,0.17736786]
[1760514987726,0.17735467,112770.0,112750.0,0.18076436]
[1760514988150,0.17735467,112770.0,112750.0,0.18176436]
[1760514988366,0.21285409,112770.0,112760.0,0.17736786]
[1760514988581,0.21285409,112770.0,112760.0,0.17836786]
[1760514988804,0.21285409,112770.0,112760.0,0.001]
[1760514989155,0.21285409,112770.0,112750.0,0.18176436]
[1760514989662,0.21285409,112770.0,112760.0,0.17836786]
[1760514989881,0.21285409,112770.0,112760.0,0.17936786]
[1760514990091,0.21285409,112770.0,112760.0,0.17836786]
[1760514990590,0.03549942,112770.0,112760.0,0.17836786]
[1760514991034,0.18620322,112780.0,112760.0,0.17836786]
[1760514991241,0.18620322,112780.0,112760.0,0.17736786]
[1760514992098,0.18620322,112780.0,112760.0,0.17836786]
[1760514992318,0.18620322,112780.0,112760.0,0.17736786]
[1760514992892,0.22246048,112780.0,112760.0,0.17736786]
[1760514993328,0.04058569,112800.0,112760.0,0.18623625]
[1760514993534,0.01390915,112800.0,112780.0,0.55148781]
[1760514993696,0.17728983,112810.0,112780.0,0.18619606]
[1760514994486,0.17730555,112800.0,112780.0,0.18619606]
[1760514994888,0.21414791,112800.0,112790.0,0.17732068]
[1760514995129,0.03684236,112800.0,112790.0,0.17732068]
[1760514995444,0.17728983,112810.0,112800.0,0.17730496]
[1760514996056,0.17728263,112820.0,112800.0,0.17730496]
[1760514996255,0.177432,112820.0,112800.0,0.17730496]
[1760514996664,0.17728924,112810.0,112800.0,0.17730496]
[1760514996878,0.17728924,112810.0,112790.0,0.18718671]
[1760514998079,0.17728924,112810.0,112790.0,0.18618671]
[1760514998420,0.21373106,112810.0,112790.0,0.18618671]
[1760515003264,0.21373106,112810.0,112800.0,0.17730496]
[1760515018903,0.2002015,112820.0,112800.0,0.17730496]
[1760515019112,5.07215273,112820.0,112810.0,0.17728924]
[1760515019315,5.07215273,112820.0,112800.0,0.17730496]
[1760515019573,0.17728924,112810.0,112800.0,0.17730496]
[1760515021158,0.21331367,112810.0,112800.0,0.17830496]
[1760515021849,0.21331367,112810.0,112800.0,0.17930496]
[1760515022475,0.21331367,112810.0,112800.0,0.002]
[1760515024405,0.21331367,112810.0,112800.0,0.19703545]
[1760515024686,0.21331367,112810.0,112800.0,0.17930496]
[1760515025177,0.17728924,112810.0,112800.0,0.17930496]
[1760515025420,0.21398466,112810.0,112800.0,0.17930496]
[1760515025662,0.17728924,112810.0,112800.0,0.17930496]
[1760515026165,4.540824,112810.0,112800.0,0.17930496]
[1760515026425,0.17799752,112820.0,112810.0,0.17728924]
[1760515026649,0.17799752,112820.0,112800.0,0.17930496]
[1760515027461,0.17799752,112820.0,112800.0,0.17830496]
[1760515027892,0.17799752,112820.0,112800.0,0.17730496]
[1760515029434,0.17731628,112800.0,112780.0,0.18619606]
[1760515029580,0.17732068,112790.0,112780.0,0.18619606]
[1760515030008,0.17732068,112790.0,112770.0,0.70934968]
[1760515030207,0.17732068,112790.0,112770.0,0.52619758]
[1760515030411,0.1773364,112780.0,112770.0,0.17735213]
[1760515030585,0.17735446,112770.0,112760.0,0.17736394]
[1760515030820,0.1773364,112780.0,112760.0,0.17736394]
[1760515031020,0.1773364,112780.0,112760.0,0.19513394]
[1760515031228,0.1773364,112780.0,112760.0,0.17736394]
[1760515031408,0.17735213,112770.0,112760.0,0.17736394]
[1760515031613,0.17735213,112770.0,112760.0,0.00013248]
[1760515032125,0.17735213,112770.0,112760.0,0.00113248]
[1760515032308,0.17735213,112770.0,112760.0,0.00213248]
[1760515032688,0.17735213,112770.0,112760.0,0.00113248]
[1760515032879,0.17735213,112770.0,112760.0,0.17850034]
[1760515033481,0.17735213,112770.0,112760.0,0.17750034]
[1760515033894,0.21386147,112770.0,112760.0,0.17850034]
[1760515034086,0.21386147,112770.0,112760.0,0.00013248]
[1760515034458,0.21386147,112770.0,112760.0,0.17850034]
[1760515034683,0.21386147,112770.0,112760.0,0.17950034]
[1760515034904,0.21386147,112770.0,112760.0,0.00213248]
[1760515035078,0.21386147,112770.0,112760.0,0.17850034]
[1760515035486,0.21386147,112770.0,112760.0,0.17950034]
[1760515036309,0.03650934,112770.0,112760.0,0.17950034]
[1760515036510,0.19124586,112780.0,112760.0,0.17950034]
[1760515037413,0.19124586,112780.0,112760.0,0.17850034]
[1760515037815,0.19124586,112780.0,112760.0,0.17750034]
[1760515038754,0.22764003,112780.0,112760.0,0.17750034]
[1760515039325,0.17735213,112770.0,112760.0,0.17750034]
[1760515040532,0.22764003,112780.0,112760.0,0.17850034]
[1760515040741,0.22764003,112780.0,112760.0,0.17950034]
[1760515041369,0.22764003,112780.0,112760.0,0.17850034]
[1760515041567,0.22764003,112780.0,112760.0,0.17750034]
[1760515042219,0.22764003,112780.0,112770.0,0.17735213]
[1760515043558,0.22764003,112780.0,112760.0,0.17750034]
[1760515043956,0.17735213,112770.0,112760.0,0.17750034]
[1760515044705,0.22764003,112780.0,112760.0,0.17750034]
[1760515045740,0.22764003,112780.0,112760.0,0.17850034]
[1760515046340,0.22764003,112780.0,112760.0,0.17950034]
[1760515046549,0.22764003,112780.0,112760.0,0.17850034]
[1760515046941,0.22764003,112780.0,112760.0,0.17750034]
[1760515049373,0.22764003,112780.0,112770.0,0.17735213]
[1760515050209,0.21373057,112780.0,112770.0,0.17735213]
[1760515050772,0.18618152,112800.0,112780.0,0.17732235]
[1760515050999,0.17732068,112790.0,112780.0,0.17732235]
[1760515051198,0.17732068,112790.0,112770.0,0.18621973]
[1760515051408,0.17732068,112790.0,112780.0,0.1773364]
[1760515056263,0.22241967,112800.0,112780.0,0.1773364]
[1760515056464,0.03623815,112800.0,112790.0,0.17732068]
[1760515056665,0.18671182,112820.0,112800.0,0.17730496]
[1760515057272,0.17728924,112810.0,112800.0,0.17730496]
[1760515057712,0.17728924,112810.0,112800.0,0.17630496]
[1760515057867,0.18671182,112820.0,112800.0,0.17630496]
[1760515058068,0.17728924,112810.0,112800.0,0.17630496]
[1760515059430,0.22269371,112820.0,112800.0,0.17630496]
[1760515060110,0.22269371,112820.0,112810.0,0.17728924]
[1760515060311,0.22269371,112820.0,112800.0,0.17630496]
[1760515060857,0.21383004,112820.0,112810.0,0.17728924]
[1760515061045,0.17799752,112820.0,112810.0,0.17728924]
[1760515062360,0.17899752,112820.0,112810.0,0.17728924]
[1760515062561,0.17799752,112820.0,112810.0,0.17728924]
[1760515064514,0.00072399,112820.0,112810.0,0.17728924]
[1760515064830,0.17799752,112820.0,112810.0,0.17728924]
[1760515066390,0.00072399,112820.0,112810.0,0.17728924]
[1760515067590,0.17799752,112820.0,112810.0,0.17728924]
[1760515067777,0.00072399,112820.0,112810.0,0.17728924]
[1760515068584,0.17726287,112830.0,112820.0,0.17727353]
[1760515068780,0.17731263,112830.0,112820.0,0.17727353]
[1760515069296,0.17727353,112820.0,112810.0,0.17828924]
[1760515069503,0.17727353,112820.0,112810.0,0.002]
[1760515069732,0.17727353,112820.0,112810.0,0.17928924]
[1760515069930,0.17727353,112820.0,112810.0,0.17828924]
[1760515070152,0.17727353,112820.0,112810.0,0.001]
[1760515070352,0.17727353,112820.0,112800.0,0.18616846]
[1760515070650,0.17727353,112820.0,112810.0,0.17728924]
[1760515070845,0.17727353,112820.0,112800.0,0.18616846]
[1760515071723,0.17727353,112820.0,112800.0,0.18716846]
[1760515072487,0.17727353,112820.0,112810.0,0.17828924]
[1760515073006,0.17727353,112820.0,112810.0,0.17728924]
[1760515074280,0.17727353,112820.0,112810.0,0.17828924]
[1760515074485,0.17727353,112820.0,112810.0,0.17928924]
[1760515077309,0.17727353,112820.0,112810.0,0.002]
[1760515077497,0.17727353,112820.0,112810.0,0.01972892]
[1760515077720,0.17727353,112820.0,112810.0,0.2176079]
[1760515077914,0.17727353,112820.0,112810.0,0.19987898]
[1760515080052,0.17727353,112820.0,112810.0,0.02258974]
[1760515080269,0.17727353,112820.0,112810.0,0.04031866]
[1760515082176,0.17727353,112820.0,112810.0,0.2176079]
[1760515082386,0.17727353,112820.0,112810.0,0.19987898]
[1760515082592,0.17727353,112820.0,112810.0,0.02258974]
[1760515082800,0.17727353,112820.0,112810.0,0.04031866]
[1760515083176,0.17727353,112820.0,112810.0,0.2176079]
[1760515083379,0.17727353,112820.0,112810.0,0.02258974]
[1760515083584,0.17727353,112820.0,112810.0,0.04031866]
[1760515084591,0.17727353,112820.0,112810.0,0.2176079]
[1760515084928,0.17727353,112820.0,112810.0,0.02258974]
[1760515085218,0.17727353,112820.0,112810.0,0.04031866]
[1760515085423,0.18787631,112820.0,112810.0,0.002]
[1760515085591,0.20448098,112820.0,112810.0,0.002]
[1760515086426,0.19618875,112820.0,112810.0,0.001]
[1760515086604,0.17730496,112800.0,112790.0,0.18618193]
[1760515088053,0.17730496,112800.0,112790.0,0.18718193]
[1760515088436,0.17730496,112800.0,112790.0,0.001]
[1760515088876,0.17730496,112800.0,112790.0,0.17832068]
[1760515089347,0.17730496,112800.0,112790.0,0.001]
[1760515089553,0.17730496,112800.0,112790.0,0.17832068]
[1760515090564,0.17730496,112800.0,112790.0,0.17932068]
[1760515091015,0.17730496,112800.0,112790.0,0.17832068]
[1760515091737,0.17730496,112800.0,112790.0,0.17932068]
[1760515091961,0.17730496,112800.0,112790.0,0.17832068]
[1760515092408,0.17730496,112800.0,112790.0,0.17932068]
[1760515092664,0.17730358,112810.0,112790.0,0.17932068]
[1760515092895,0.17730496,112800.0,112790.0,0.17932068]
[1760515093829,0.17730496,112800.0,112790.0,0.17832068]
[1760515095722,0.17730496,112800.0,112790.0,0.17932068]
[1760515102005,0.17730358,112810.0,112790.0,0.17932068]
[1760515102968,0.17730496,112800.0,112790.0,0.17732068]
[1760515104305,0.17730496,112800.0,112790.0,0.17832068]
[1760515105122,0.17730496,112800.0,112790.0,0.17932068]
[1760515106331,0.17730358,112810.0,112790.0,0.17932068]
[1760515107109,0.17730496,112800.0,112790.0,0.17932068]
[1760515107845,0.17730496,112800.0,112790.0,0.17832068]
[1760515108708,0.17730496,112800.0,112790.0,0.17732068]
[1760515109189,0.17730358,112810.0,112790.0,0.17732068]
[1760515109596,0.17730358,112810.0,112790.0,0.17832068]
[1760515110420,0.17730358,112810.0,112790.0,0.17932068]
[1760515110591,0.17730496,112800.0,112790.0,0.17832068]
[1760515110965,0.17730496,112800.0,112790.0,0.17732068]
[1760515112171,0.17729538,112810.0,112800.0,0.17729054]
[1760515112373,0.18843789,112820.0,112810.0,0.17728924]
[1760515112374,0.00230069,112820.0,112810.0,0.17728924]
[1760515112553,0.17957422,112820.0,112810.0,0.17728924]
[1760515113922,0.00230069,112820.0,112810.0,0.17728924]
[1760515114125,0.17957422,112820.0,112810.0,0.17728924]
[1760515115922,0.17727353,112820.0,112810.0,0.17728924]
[1760515116437,0.16802718,112830.0,112810.0,0.17728924]
[1760515116843,0.17727353,112820.0,112810.0,0.17728924]
[1760515117044,0.17727353,112820.0,112810.0,0.21274722]
[1760515117204,0.17727353,112820.0,112810.0,0.17728924]
[1760515127930,0.17727353,112820.0,112800.0,0.17729054]
[1760515128126,0.17727353,112820.0,112810.0,0.01772892]
[1760515128341,0.17727353,112820.0,112810.0,0.19501816]
[1760515128548,0.17727353,112820.0,112810.0,0.17728924]
[1760515135597,0.16802718,112830.0,112820.0,0.17727353]
[1760515135760,0.16802718,112830.0,112810.0,0.17728924]
[1760515136548,0.16802718,112830.0,112820.0,0.17727353]
[1760515143667,0.03612814,112830.0,112820.0,0.17727353]
[1760515144499,0.03319199,112830.0,112820.0,0.17727353]
[1760515144654,0.00057454,112830.0,112820.0,0.17727353]
[1760515145729,0.00057454,112830.0,112820.0,0.17927353]
[1760515145948,0.00057454,112830.0,112820.0,0.17827353]
[1760515146587,0.00057454,112830.0,112820.0,0.17927353]
[1760515148948,0.00057454,112830.0,112820.0,1.26769237]
[1760515149300,0.00057454,112830.0,112820.0,0.89348295]
[1760515149459,0.00057454,112830.0,112820.0,0.91981522]
[1760515154006,0.00057454,112830.0,112820.0,1.03113522]
[1760515154203,0.00057454,112830.0,112820.0,0.65725444]
[1760515155461,0.00057454,112830.0,112820.0,0.54593444]
[1760515155768,0.00057454,112830.0,112820.0,0.65725444]
[1760515156335,0.00057454,112830.0,112820.0,0.54593444]
[1760515156538,0.00057454,112830.0,112820.0,0.65725444]
[1760515160069,0.00057454,112830.0,112820.0,1.03113522]
[1760515160730,0.00057454,112830.0,112820.0,0.65725444]
[1760515162520,0.00057454,112830.0,112820.0,1.03113522]
[1760515163353,0.00057454,112830.0,112820.0,0.65725444]
[1760515165579,0.00057454,112830.0,112820.0,0.54593444]
[1760515166134,0.00057454,112830.0,112820.0,0.65725444]
[1760515166495,0.00057454,112830.0,112820.0,0.54593444]
[1760515166885,0.00057454,112830.0,112820.0,0.65725444]
[1760515167245,0.00057454,112830.0,112820.0,1.0673175]
[1760515167812,0.00057454,112830.0,112820.0,0.9559975]
[1760515168171,0.00057454,112830.0,112820.0,1.0673175]
[1760515169649,0.00057454,112830.0,112820.0,0.58211672]
[1760515169855,0.00057454,112830.0,112820.0,1.0672775]
[1760515170280,0.00057454,112830.0,112820.0,1.10357584]
[1760515170487,0.00057454,112830.0,112820.0,0.99229584]
[1760515170724,0.00057454,112830.0,112820.0,1.10357584]
[1760515170950,0.00057454,112830.0,112820.0,0.99229584]
[1760515171335,0.00057454,112830.0,112820.0,1.10357584]
[1760515171754,0.00057454,112830.0,112820.0,0.72969506]
[1760515171957,0.00057454,112830.0,112820.0,0.99229584]
[1760515172183,0.00057454,112830.0,112820.0,1.10357584]
[1760515174538,0.00057454,112830.0,112820.0,0.99229584]
[1760515175149,0.00057454,112830.0,112820.0,1.10357584]
[1760515176393,0.00057454,112830.0,112820.0,0.72969506]
[1760515176612,0.00057454,112830.0,112820.0,0.61841506]
[1760515176870,0.00057454,112830.0,112820.0,0.72969506]
[1760515177487,0.00057454,112830.0,112820.0,1.10357584]
[1760515177968,0.00057454,112830.0,112820.0,0.58211672]
[1760515178423,0.00057454,112830.0,112820.0,0.69339672]
[1760515179076,0.00057454,112830.0,112820.0,0.54593444]
[1760515179297,0.00057454,112830.0,112820.0,0.29055353]
[1760515179497,0.00057454,112830.0,112820.0,0.17927353]
[1760515181744,0.00057454,112830.0,112820.0,0.29055353]
[1760515182512,4.71805145,112850.0,112830.0,0.17724249]
[1760515182719,0.1777252,112850.0,112830.0,0.17724249]
[1760515183177,0.1777252,112850.0,112840.0,0.17724211]
[1760515184170,0.18658652,112850.0,112840.0,0.17724211]
[1760515188855,0.00049775,112850.0,112840.0,0.17724211]
[1760515190199,0.17772415,112850.0,112840.0,0.17724211]
[1760515190850,0.00049775,112850.0,112840.0,0.17724211]
[1760515193489,0.00164657,112850.0,112840.0,0.17724211]
[1760515197865,0.17887297,112850.0,112840.0,0.17724211]
[1760515198740,0.00164657,112850.0,112840.0,0.17724211]
[1760515199247,0.17887297,112850.0,112840.0,0.17724211]
[1760515200040,0.17887297,112850.0,112830.0,0.17724249]
[1760515200239,0.17724211,112840.0,112830.0,0.17725782]
[1760515201601,0.17724211,112840.0,112820.0,0.21279809]
[1760515202335,0.17724211,112840.0,112820.0,0.02666089]
[1760515202336,0.17725782,112830.0,112820.0,0.02666089]
[1760515202530,0.17725782,112830.0,112810.0,0.24904134]
[1760515202730,0.17725782,112830.0,112820.0,0.17727353]
[1760515203109,0.17725782,112830.0,112810.0,0.17728924]
[1760515203553,4.540824,112830.0,112820.0,0.17727353]
[1760515203754,4.71808182,112830.0,112820.0,0.17727353]
[1760515204083,4.540824,112830.0,112820.0,0.17927353]
[1760515204227,4.71808182,112830.0,112820.0,0.17927353]
[1760515204431,0.17725782,112830.0,112820.0,0.17927353]
[1760515204634,4.540824,112830.0,112820.0,0.17927353]
[1760515205398,0.2127692,112840.0,112820.0,0.17927353]
[1760515205587,4.540824,112830.0,112820.0,0.17927353]
[1760515206005,0.17725782,112830.0,112820.0,0.17927353]
[1760515206155,4.540824,112830.0,112820.0,0.17827353]
[1760515206358,4.71808182,112830.0,112820.0,0.17827353]
[1760515206715,4.540824,112830.0,112820.0,0.17827353]
[1760515207160,0.17725782,112830.0,112820.0,0.17827353]
[1760515207520,0.17725782,112830.0,112820.0,0.17927353]
[1760515207720,4.540824,112830.0,112820.0,0.17927353]
[1760515207890,4.540824,112830.0,112820.0,0.17827353]
[1760515208081,0.17725782,112830.0,112820.0,0.17827353]
[1760515208289,4.540824,112830.0,112820.0,0.17827353]
[1760515208484,4.540824,112830.0,112820.0,0.17727353]
[1760515208682,0.02723945,112840.0,112830.0,0.17725782]
[1760515208891,0.00057446,112840.0,112830.0,0.17725782]
[1760515209733,0.00057446,112840.0,112820.0,0.17727353]
[1760515210208,0.17781709,112840.0,112810.0,0.14680628]
[1760515210377,0.17781709,112840.0,112810.0,0.21279981]
[1760515210618,0.17725782,112830.0,112820.0,0.17727265]
[1760515211189,0.17725782,112830.0,112820.0,0.17727353]
[1760515211381,0.17725782,112830.0,112810.0,0.18613799]
[1760515211581,0.17725782,112830.0,112820.0,0.17727353]
[1760515211848,4.540824,112830.0,112820.0,0.17727353]
[1760515212183,0.17725782,112830.0,112820.0,0.17727353]
[1760515212932,0.20448248,112840.0,112820.0,0.17727353]
[1760515213131,4.540824,112830.0,112820.0,0.17827353]
[1760515213755,0.20448248,112840.0,112830.0,0.17725782]
[1760515213976,0.02723985,112840.0,112830.0,0.17725782]
[1760515214550,0.00057446,112840.0,112830.0,0.17725782]
[1760515215591,0.00057446,112840.0,112830.0,0.55130796]
[1760515216881,0.17722893,112850.0,112830.0,0.17725782]
[1760515217233,0.17722893,112850.0,112830.0,0.20391897]
[1760515217640,0.17722893,112850.0,112830.0,0.20491897]
[1760515218739,0.17724211,112840.0,112830.0,0.001]
[1760515219407,0.17724211,112840.0,112830.0,0.002]
[1760515219621,0.17724211,112840.0,112830.0,0.001]
[1760515219867,0.17724211,112840.0,112830.0,0.002]
[1760515220286,0.17724211,112840.0,112830.0,0.001]
[1760515220664,0.17724211,112840.0,112830.0,0.002]
[1760515221233,0.17724211,112840.0,112830.0,0.001]
[1760515221630,0.17724211,112840.0,112830.0,0.002]
[1760515221983,0.17724211,112840.0,112830.0,0.001]
[1760515222380,0.17724211,112840.0,112830.0,0.002]
[1760515226455,0.17724211,112840.0,112830.0,0.01972578]
[1760515226832,0.17724211,112840.0,112830.0,0.03942571]
[1760515228000,0.17724211,112840.0,112830.0,0.02169993]
[1760515228677,0.17724211,112840.0,112830.0,0.002]
[1760515228880,0.17224211,112840.0,112830.0,0.002]
[1760515229109,0.52886556,112840.0,112830.0,0.002]
[1760515229526,5.0780016,112840.0,112830.0,0.002]
[1760515229675,5.10466801,112840.0,112830.0,0.002]
[1760515230751,5.10466801,112840.0,112830.0,0.001]
[1760515230974,5.10466712,112840.0,112830.0,0.001]
[1760515231187,0.17726992,112830.0,112810.0,0.25790572]
[1760515231416,0.17726992,112830.0,112810.0,0.63195586]
[1760515231641,0.17726992,112830.0,112820.0,0.17727353]
[1760515231868,0.02666641,112840.0,112820.0,0.55132367]
[1760515232064,0.17724401,112840.0,112820.0,0.55132367]
[1760515232713,0.17724401,112840.0,112820.0,0.55232367]
[1760515233371,0.17724401,112840.0,112820.0,0.17827353]
[1760515233579,0.17725782,112830.0,112820.0,0.17827353]
[1760515234000,0.17725782,112830.0,112820.0,0.17727353]
[1760515234201,0.17725782,112830.0,112810.0,0.58686749]
[1760515234406,0.17725782,112830.0,112820.0,0.01772735]
[1760515235292,0.17725782,112830.0,112820.0,0.01972735]
[1760515235647,0.17725782,112830.0,112820.0,0.002]
[1760515237692,0.17725782,112830.0,112820.0,0.01972735]
[1760515239761,0.17725782,112830.0,112820.0,0.002]
[1760515244906,0.17681466,112830.0,112820.0,0.002]
[1760515246186,0.17681466,112830.0,112820.0,0.17927353]
[1760515246389,0.17681466,112830.0,112820.0,0.19700088]
[1760515246721,0.17681466,112830.0,112820.0,0.17927353]
[1760515247919,0.17681466,112830.0,112820.0,0.002]
[1760515250661,0.17681466,112830.0,112820.0,0.17927353]
[1760515251211,0.17681466,112830.0,112820.0,0.002]
[1760515251822,0.17681466,112830.0,112820.0,0.17927353]
[1760515252752,0.17681466,112830.0,112820.0,0.002]
[1760515257944,0.2017711,112830.0,112820.0,0.002]
[1760515258377,0.22843775,112830.0,112820.0,0.002]
[1760515258585,4.7425951,112830.0,112820.0,0.002]
[1760515259001,4.76926365,112830.0,112820.0,0.002]
[1760515259240,4.85894573,112830.0,112820.0,0.002]
[1760515259494,5.19894573,112830.0,112820.0,0.002]
[1760515259671,5.10926365,112830.0,112820.0,0.002]
[1760515260084,5.10926202,112830.0,112820.0,0.002]
[1760515260423,5.10926202,112830.0,112820.0,0.001]
[1760515260626,0.17730496,112800.0,112790.0,0.08948416]
[1760515261039,0.03138412,112800.0,112790.0,0.26680484]
[1760515261245,4.540824,112820.0,112810.0,0.17728924]
[1760515261455,0.19117839,112820.0,112800.0,0.55134469]
[1760515261698,0.19117839,112820.0,112780.0,0.18619562]
[1760515261699,0.17728924,112810.0,112780.0,0.18619562]
[1760515261906,0.20812121,112810.0,112790.0,0.17832024]
[1760515262112,0.20812121,112810.0,112790.0,0.001]
[1760515262314,0.20812121,112810.0,112790.0,0.17831974]
[1760515263638,0.20812121,112810.0,112800.0,0.001]
[1760515263855,0.20812121,112810.0,112790.0,0.17831974]
[1760515264233,0.20812121,112810.0,112790.0,0.17931974]
[1760515264455,0.20812121,112810.0,112790.0,0.17831974]
[1760515264824,0.20812121,112810.0,112800.0,0.17830496]
[1760515265071,0.20812121,112810.0,112800.0,0.17730496]
[1760515265269,0.20812121,112810.0,112790.0,0.17831974]
[1760515265517,0.20812121,112810.0,112800.0,0.17730496]
[1760515265897,0.19117832,112820.0,112800.0,0.5513551]
[1760515266114,0.22319957,112820.0,112800.0,0.5513551]
[1760515266256,0.22319957,112820.0,112800.0,0.17730496]
[1760515266917,0.22319957,112820.0,112800.0,0.17830496]
[1760515267099,0.22319957,112820.0,112800.0,0.17930496]
[1760515267497,0.22319957,112820.0,112800.0,0.17830496]
[1760515267860,0.04592604,112820.0,112800.0,0.17930496]
[1760515268279,0.04592604,112820.0,112810.0,0.17728924]
[1760515268890,0.00886289,112830.0,112800.0,0.17930496]
[1760515269067,4.540824,112820.0,112810.0,0.17728924]
[1760515269825,4.540824,112820.0,112810.0,0.17828924]
[1760515270096,4.540824,112820.0,112810.0,0.17928924]
[1760515270887,0.01390397,112840.0,112830.0,0.17725782]
[1760515271084,0.03882809,112840.0,112830.0,0.17725782]
[1760515271384,0.20216623,112840.0,112830.0,0.17725782]
[1760515271528,0.02492412,112840.0,112830.0,0.17725782]
[1760515271731,0.20216623,112840.0,112830.0,0.17725782]
[1760515271953,0.19385819,112840.0,112830.0,0.00049775]
[1760515273757,0.17724211,112840.0,112830.0,0.00049775]
[1760515274138,0.21337546,112840.0,112830.0,0.00049775]
[1760515274560,4.75419946,112840.0,112830.0,0.00049775]
[1760515279125,0.03613335,112840.0,112830.0,0.19548135]
[1760515279326,0.17722649,112850.0,112840.0,0.17724211]
[1760515279553,4.73465889,112850.0,112840.0,0.17724211]
[1760515280164,4.71805049,112850.0,112840.0,0.17724211]
[1760515280831,4.71805049,112850.0,112830.0,0.17775557]
[1760515281036,4.540824,112840.0,112830.0,0.17775557]
[1760515282719,5.0,112850.0,112840.0,0.17724211]
[1760515283162,5.03563742,112850.0,112840.0,0.17724211]
[1760515283463,0.19111359,112860.0,112840.0,0.17724211]
[1760515283681,5.0,112850.0,112840.0,0.17724211]
[1760515284867,5.00057439,112850.0,112840.0,0.17724211]
[1760515285066,0.00057439,112850.0,112840.0,0.17724211]
[1760515285268,0.00057439,112850.0,112840.0,0.17824211]
[1760515285475,0.00057439,112850.0,112840.0,0.17924211]
[1760515286879,0.00057439,112850.0,112840.0,0.17724211]
[1760515287008,0.00057439,112850.0,112840.0,0.17824211]
[1760515288249,0.00057439,112850.0,112840.0,0.55322168]
[1760515289373,0.00057439,112850.0,112840.0,0.17924211]
[1760515289977,0.00057439,112850.0,112840.0,0.20589694]
[1760515290185,5.0,112870.0,112860.0,0.1772107]
[1760515290724,0.00114851,112870.0,112860.0,0.1772107]
[1760515291546,0.00114851,112870.0,112860.0,0.1782107]
[1760515293599,0.51834351,112870.0,112860.0,0.1782107]
[1760515294962,0.51834351,112870.0,112860.0,0.001]
[1760515295445,0.51834351,112870.0,112860.0,0.19593177]